bitfinex-derivatives/quotes_BTCF0:USTF0_20220102
["timestamp","ask_amount","ask_price","bid_price","bid_amount"]
[1641086365576,0.20106514,47487.0,47486.0,0.14033567]
[1641086365777,0.20106514,47487.0,47481.0,0.14033567]
[1641086365977,0.18,47482.0,47481.0,0.14033567]
[1641086366378,0.18,47482.0,47475.0,0.14033567]
[1641086366578,0.18,47481.0,47475.0,0.14033567]
[1641086367179,0.18,47484.0,47475.0,0.14033567]
[1641086367581,0.185,47481.0,47475.0,0.14033567]
[1641086367781,0.3525568,47479.0,47475.0,0.14033567]
[1641086368080,0.4220968,47479.0,47475.0,0.14033567]
[1641086368682,0.18,47478.0,47475.0,0.14033567]
[1641086369083,0.4220968,47479.0,47475.0,0.14033567]
[1641086369481,0.186,47478.0,47475.0,0.14033567]
[1641086370982,0.4220968,47479.0,47475.0,0.14033567]
[1641086371381,0.18,47478.0,47475.0,0.14033567]
[1641086373082,0.18,47476.0,47475.0,0.14033567]
[1641086373682,0.18,47476.0,47469.0,0.02106514]
[1641086374283,0.18,47476.0,47471.0,0.14033567]
[1641086375588,0.367,47476.0,47471.0,0.14033567]
[1641086376789,0.18,47476.0,47471.0,0.14033567]
[1641086377491,0.367,47476.0,47471.0,0.14033567]
[1641086378893,0.187,47476.0,47471.0,0.14033567]
[1641086379095,0.3525568,47476.0,47471.0,0.14033567]
[1641086379597,0.5395568,47476.0,47471.0,0.14033567]
[1641086379794,0.187,47476.0,47471.0,0.14033567]
[1641086380406,0.187,47476.0,47474.0,0.59741303]
[1641086380407,1.29019963,47475.0,47474.0,0.59741303]
[1641086381508,1.65719963,47475.0,47474.0,0.59741303]
[1641086381708,1.65719963,47475.0,47471.0,1.19619171]
[1641086381909,0.18,47472.0,47467.0,0.59781613]
[1641086382513,0.181,47468.0,47467.0,0.59781613]
[1641086382716,0.25729,47468.0,47463.0,1.19619171]
[1641086382913,0.18,47464.0,47457.0,1.19619171]
[1641086383113,0.18,47459.0,47457.0,1.19619171]
[1641086384115,0.06452111,47458.0,47457.0,1.19619171]
[1641086384319,0.15699111,47458.0,47457.0,1.19619171]
[1641086384516,0.29732678,47458.0,47457.0,1.19619171]
[1641086385116,0.29732678,47458.0,47451.0,1.104]
[1641086385518,0.41780567,47458.0,47451.0,1.104]
[1641086386720,0.76993589,47458.0,47453.0,1.104]
[1641086386920,0.58493589,47458.0,47453.0,1.104]
[1641086387621,0.41780567,47458.0,47453.0,1.104]
[1641086388224,0.41780567,47458.0,47449.0,0.06278]
[1641086388423,0.76993589,47458.0,47449.0,0.06278]
[1641086388822,0.58493589,47458.0,47450.0,0.01197412]
[1641086389123,0.23280567,47458.0,47450.0,0.01197412]
[1641086389623,0.41780567,47458.0,47450.0,0.01197412]
[1641086390123,0.41780567,47458.0,47450.0,0.84918671]
[1641086390523,0.41780567,47458.0,47451.0,0.01197412]
[1641086390725,0.41780567,47458.0,47450.0,0.83721259]
[1641086391024,0.23280567,47458.0,47450.0,0.83721259]
[1641086391423,0.58493589,47458.0,47450.0,0.83721259]
[1641086391624,0.76993589,47458.0,47450.0,0.83721259]
[1641086391823,0.76993589,47458.0,47451.0,0.01197426]
[1641086392024,0.41780567,47458.0,47451.0,0.01197426]
[1641086393029,0.23280567,47458.0,47451.0,0.01197426]
[1641086393227,0.58493589,47458.0,47451.0,0.60999633]
[1641086393627,0.77093589,47458.0,47451.0,0.59802207]
[1641086395033,0.58493589,47458.0,47451.0,0.59802207]
[1641086395531,0.76993589,47458.0,47451.0,0.59802207]
[1641086396732,0.76993589,47458.0,47450.0,0.59802207]
[1641086397030,0.58493589,47458.0,47450.0,0.59802207]
[1641086397635,0.76893589,47458.0,47450.0,0.59802207]
[1641086398934,0.58493589,47458.0,47451.0,0.01197432]
[1641086399536,0.58493589,47458.0,47450.0,0.59802207]
[1641086399734,0.76893589,47458.0,47450.0,0.59802207]
[1641086400337,0.18,47454.0,47450.0,0.59802207]
[1641086400638,0.53213022,47457.0,47449.0,0.59802207]
[1641086401238,0.53213022,47457.0,47448.0,0.83721259]
[1641086401438,0.53213022,47457.0,47446.0,0.83721259]
[1641086401439,0.35213022,47455.0,47446.0,0.83721259]
[1641086401843,0.35213022,47455.0,47447.0,0.0119752]
[1641086403240,0.35213022,47455.0,47448.0,0.18]
[1641086403440,0.35213022,47457.0,47454.0,0.02106935]
[1641086403640,0.35213022,47457.0,47456.0,1.284]
[1641086403839,0.35213022,47457.0,47454.0,0.08661935]
[1641086404140,0.35213022,47457.0,47455.0,0.0119752]
[1641086405046,1.17233196,47462.0,47456.0,0.14033567]
[1641086405249,0.35213022,47464.0,47456.0,0.14033567]
[1641086405744,0.186,47462.0,47456.0,0.14033567]
[1641086406142,0.186,47462.0,47456.0,0.97754826]
[1641086406942,0.35213022,47465.0,47457.0,0.18]
[1641086406943,0.35213022,47463.0,47457.0,0.18]
[1641086407746,0.53713022,47463.0,47457.0,0.18]
[1641086407945,0.185,47463.0,47457.0,0.18]
[1641086408344,0.185,47463.0,47458.0,0.01197264]
[1641086408546,0.185,47463.0,47459.0,0.18]
[1641086408747,0.185,47463.0,47462.0,0.18]
[1641086408945,0.35213022,47465.0,47459.0,0.18]
[1641086409748,0.53713022,47465.0,47459.0,0.18]
[1641086410148,0.185,47465.0,47458.0,0.83721259]
[1641086410749,0.53713022,47465.0,47456.0,0.97754826]
[1641086410952,0.60784022,47465.0,47456.0,0.97754826]
[1641086411148,0.56317589,47465.0,47456.0,0.97754826]
[1641086411753,0.35213022,47464.0,47456.0,0.97754826]
[1641086412553,0.18,47459.0,47456.0,0.14033567]
[1641086412953,0.18,47459.0,47453.0,0.83721259]
[1641086413654,0.186,47459.0,47452.0,0.84700659]
[1641086414057,0.186,47459.0,47453.0,0.01197377]
[1641086414260,0.186,47459.0,47452.0,0.84700659]
[1641086415061,0.14033567,47460.0,47452.0,0.84700659]
[1641086415262,0.49246589,47460.0,47452.0,0.009794]
[1641086415661,0.67846589,47460.0,47452.0,0.009794]
[1641086415863,0.32633567,47460.0,47452.0,0.84700659]
[1641086417070,0.14033567,47460.0,47452.0,0.84700659]
[1641086417271,0.49246589,47460.0,47452.0,0.009794]
[1641086417671,0.67746589,47460.0,47452.0,0.009794]
[1641086418073,0.32533567,47460.0,47452.0,0.84700659]
[1641086418973,0.14033567,47460.0,47452.0,0.84700659]
[1641086419773,0.32333567,47460.0,47452.0,0.84700659]
[1641086420179,0.67546589,47460.0,47452.0,0.009794]
[1641086421074,0.49246589,47460.0,47452.0,0.009794]
[1641086421674,0.67746589,47460.0,47452.0,0.009794]
[1641086423080,0.49246589,47460.0,47452.0,0.009794]
[1641086423276,0.35213022,47459.0,47452.0,0.009794]
[1641086424077,0.35213022,47458.0,47452.0,0.009794]
[1641086424877,0.91221269,47460.0,47452.0,0.009794]
[1641086424878,0.35213022,47459.0,47452.0,0.009794]
[1641086425080,0.18,47456.0,47452.0,0.009794]
[1641086425279,0.26458,47456.0,47450.0,0.83721259]
[1641086425680,0.45158,47456.0,47449.0,0.97754826]
[1641086426078,0.27158,47456.0,47449.0,0.97754826]
[1641086426378,0.187,47456.0,47449.0,0.14033567]
[1641086426580,0.35213022,47450.0,47449.0,0.14033567]
[1641086426980,0.35213022,47450.0,47449.0,0.15231009]
[1641086427387,0.35213022,47451.0,47449.0,0.15231009]
[1641086427782,0.188,47450.0,47449.0,0.15231009]
[1641086427990,0.188,47450.0,47449.0,0.14033567]
[1641086429084,0.44417022,47451.0,47449.0,0.14033567]
[1641086429284,0.44417022,47451.0,47447.0,1.43681217]
[1641086429685,0.28104,47451.0,47447.0,1.43681217]
[1641086429886,0.58587702,47450.0,47446.0,0.02107533]
[1641086430790,0.35078325,47447.0,47446.0,0.02107533]
[1641086431694,0.53678325,47447.0,47446.0,0.02107533]
[1641086432090,0.186,47447.0,47446.0,0.02107533]
[1641086432991,0.14033567,47453.0,47446.0,0.02107533]
[1641086433697,0.18,47451.0,47445.0,0.14033567]
[1641086434691,0.32833567,47453.0,47445.0,0.14033567]
[1641086434892,0.18,47448.0,47445.0,0.14033567]
[1641086435493,0.18,47448.0,47443.0,0.8371328]
[1641086435793,0.369,47448.0,47443.0,0.8371328]
[1641086436193,0.369,47448.0,47441.0,0.8371328]
[1641086436693,0.189,47448.0,47441.0,0.8371328]
[1641086437294,0.32933567,47448.0,47441.0,0.8371328]
[1641086437693,0.32633567,47448.0,47441.0,0.8371328]
[1641086438094,0.50633567,47448.0,47441.0,0.8371328]
[1641086438294,0.32633567,47448.0,47441.0,0.8371328]
[1641086438895,0.32633567,47448.0,47442.0,0.8371328]
[1641086439095,0.14033567,47448.0,47442.0,0.9121128]
[1641086439696,0.32833567,47448.0,47442.0,0.9121128]
[1641086440200,0.32833567,47448.0,47443.0,0.8371328]
[1641086441198,0.14033567,47448.0,47443.0,0.8371328]
[1641086441701,0.33133567,47448.0,47443.0,0.8371328]
[1641086442098,0.33133567,47448.0,47444.0,0.8371328]
[1641086443100,0.191,47448.0,47444.0,0.8371328]
[1641086443300,0.191,47448.0,47445.0,0.01197509]
[1641086443503,0.14033567,47453.0,47445.0,0.01197509]
[1641086443701,0.183,47448.0,47445.0,0.01197509]
[1641086445101,0.14033567,47453.0,47445.0,0.01197509]
[1641086445502,0.35078325,47456.0,47447.0,0.14033567]
[1641086445701,0.191,47453.0,47447.0,0.14033567]
[1641086445904,0.191,47453.0,47448.0,0.01197509]
[1641086447005,0.35078325,47456.0,47448.0,0.01197509]
[1641086447806,0.53978325,47456.0,47448.0,0.01197509]
[1641086448007,0.189,47456.0,47448.0,0.01197509]
[1641086449011,0.18,47457.0,47448.0,0.01197509]
[1641086449210,0.35078325,47458.0,47448.0,0.01197509]
[1641086449811,0.35078325,47457.0,47448.0,0.01197509]
[1641086450016,0.53078325,47457.0,47448.0,0.01197509]
[1641086450518,1.29019963,47456.0,47454.0,0.8371328]
[1641086451018,1.40777577,47456.0,47454.0,0.8371328]
[1641086451718,1.59477577,47456.0,47454.0,0.8371328]
[1641086452620,0.11757614,47455.0,47453.0,0.8371328]
[1641086453825,0.18,47454.0,47453.0,0.8371328]
[1641086454623,0.30457614,47455.0,47453.0,0.8371328]
[1641086455024,0.11757614,47454.0,47452.0,0.8371328]
[1641086455724,0.30457614,47454.0,47452.0,0.8371328]
[1641086456225,0.187,47454.0,47453.0,0.8371328]
[1641086457024,0.11757614,47454.0,47453.0,0.8371328]
[1641086457824,0.30557614,47454.0,47453.0,0.8371328]
[1641086459031,0.11757614,47454.0,47453.0,0.8371328]
[1641086459526,0.11757614,47454.0,47451.0,1.19589158]
[1641086459727,0.30457614,47454.0,47451.0,1.19589158]
[1641086459928,0.30457614,47454.0,47452.0,1.19589158]
[1641086460930,0.11757614,47453.0,47452.0,1.19589158]
[1641086461632,1.29019963,47457.0,47451.0,1.19589158]
[1641086461928,0.188,47453.0,47451.0,1.19589158]
[1641086463030,1.29019963,47458.0,47452.0,1.19589158]
[1641086463629,0.18,47456.0,47452.0,1.19589158]
[1641086464232,0.18,47456.0,47451.0,1.19589158]
[1641086464831,0.11757614,47455.0,47451.0,1.19589158]
[1641086465831,0.11757614,47454.0,47450.0,1.19589158]
[1641086466431,0.82340774,47451.0,47450.0,1.19589158]
[1641086467634,0.94098388,47451.0,47450.0,1.19589158]
[1641086467835,1.12998388,47451.0,47450.0,1.19589158]
[1641086469137,0.94098388,47451.0,47450.0,1.19589158]
[1641086469738,1.12898388,47451.0,47450.0,1.19589158]
[1641086470741,1.29019963,47456.0,47450.0,1.20568558]
[1641086470941,1.29019963,47456.0,47450.0,1.27802558]
[1641086471343,1.29019963,47456.0,47451.0,0.18]
[1641086471540,1.29019963,47456.0,47451.0,0.19197353]
[1641086471741,0.35325645,47452.0,47451.0,1.69844653]
[1641086471943,1.29019963,47461.0,47451.0,2.82351832]
[1641086472142,1.29019963,47461.0,47456.0,0.18]
[1641086472344,1.29019963,47461.0,47455.0,0.18]
[1641086472944,1.4305353,47464.0,47455.0,0.18]
[1641086473143,1.4305353,47464.0,47451.0,2.74188396]
[1641086473744,0.32933567,47464.0,47455.0,0.14033567]
[1641086473945,0.32933567,47464.0,47455.0,0.32033567]
[1641086474146,0.32933567,47464.0,47455.0,0.14033567]
[1641086474548,0.32933567,47464.0,47455.0,0.32033567]
[1641086475245,0.32933567,47464.0,47455.0,0.14033567]
[1641086475646,0.32933567,47464.0,47456.0,0.01197269]
[1641086475849,0.32433567,47464.0,47456.0,0.01197269]
[1641086477247,0.14033567,47464.0,47456.0,0.01197269]
[1641086477847,0.32533567,47464.0,47456.0,0.16997269]
[1641086478249,0.32533567,47464.0,47456.0,0.158]
[1641086479149,1.17741949,47467.0,47455.0,1.51662273]
[1641086479350,1.17741949,47467.0,47455.0,1.33662273]
[1641086479553,0.82418314,47465.0,47457.0,0.83740115]
[1641086480050,0.82418314,47465.0,47461.0,0.14033567]
[1641086480250,0.82418314,47464.0,47461.0,0.14033567]
[1641086480957,0.82418314,47465.0,47461.0,0.14033567]
[1641086481954,0.58852132,47463.0,47461.0,0.28533567]
[1641086483054,0.58852132,47463.0,47461.0,0.14033567]
[1641086483455,0.35314164,47462.0,47461.0,0.14033567]
[1641086483856,0.35314164,47462.0,47461.0,0.31233567]
[1641086485255,0.35314164,47462.0,47461.0,0.14033567]
[1641086485857,0.45514164,47462.0,47461.0,0.32233567]
[1641086486557,0.102,47462.0,47461.0,0.32233567]
[1641086487258,0.35314164,47463.0,47461.0,0.14033567]
[1641086487859,0.51114164,47463.0,47461.0,0.32133567]
[1641086489157,0.35314164,47463.0,47461.0,0.14033567]
[1641086489958,0.50214164,47463.0,47461.0,0.32133567]
[1641086491160,0.35314164,47463.0,47461.0,0.14033567]
[1641086491960,0.53814164,47463.0,47461.0,0.31933567]
[1641086492963,0.35314164,47462.0,47461.0,0.31933567]
[1641086493866,0.71314164,47462.0,47461.0,0.18]
[1641086494064,0.85347731,47462.0,47461.0,0.18]
[1641086494663,0.50033567,47462.0,47461.0,0.18]
[1641086495263,0.34141243,47462.0,47457.0,0.83740115]
[1641086495463,0.16141243,47462.0,47457.0,0.83740115]
[1641086495664,0.14033567,47462.0,47457.0,0.83740115]
[1641086495864,0.14033567,47462.0,47453.0,0.009794]
[1641086495865,1.61428491,47462.0,47453.0,0.009794]
[1641086496669,0.10652975,47461.0,47453.0,0.009794]
[1641086496869,0.35275842,47457.0,47453.0,0.009794]
[1641086497774,0.35275842,47454.0,47453.0,0.009794]
[1641086497975,0.35275842,47454.0,47453.0,0.193794]
[1641086499187,0.35275842,47454.0,47453.0,0.010794]
[1641086499790,0.35275842,47454.0,47453.0,0.001]
[1641086499989,0.35275842,47454.0,47453.0,0.189]
[1641086501292,0.35275842,47454.0,47453.0,0.001]
[1641086501994,0.35275842,47454.0,47453.0,0.194]
[1641086503193,0.35275842,47454.0,47453.0,0.001]
[1641086503995,0.35275842,47454.0,47453.0,0.194]
[1641086505301,0.35275842,47454.0,47453.0,0.001]
[1641086505898,0.35275842,47454.0,47453.0,0.195]
[1641086507299,0.35275842,47454.0,47453.0,0.001]
[1641086507903,0.35275842,47454.0,47453.0,0.194]
[1641086509003,0.35275842,47455.0,47453.0,0.194]
[1641086509302,0.35275842,47455.0,47452.0,0.14033567]
[1641086509904,0.35275842,47455.0,47452.0,0.33233567]
[1641086513206,0.35275842,47455.0,47452.0,0.14033567]
[1641086513403,0.35275842,47455.0,47453.0,1.19688729]
[1641086514006,0.35275842,47455.0,47453.0,1.38888729]
[1641086514605,0.35275842,47455.0,47454.0,0.001]
[1641086516004,0.35275842,47455.0,47454.0,0.194]
[1641086517308,0.35275842,47455.0,47454.0,0.001]
[1641086517908,0.35275842,47455.0,47454.0,0.994]
[1641086518109,0.35275842,47455.0,47454.0,2.17415]
[1641086518313,0.35275842,47455.0,47454.0,1.08212276]
[1641086518811,0.5879307,47457.0,47454.0,1.08212276]
[1641086519011,0.35275842,47459.0,47456.0,0.001]
[1641086519210,0.35275842,47459.0,47458.0,0.001]
[1641086519812,0.35275842,47460.0,47458.0,0.001]
[1641086520013,0.35275842,47460.0,47459.0,0.001]
[1641086520613,0.35275842,47460.0,47459.0,0.14133567]
[1641086521924,0.35275842,47460.0,47459.0,0.32833567]
[1641086522114,0.5879307,47462.0,47459.0,0.32833567]
[1641086522338,0.82310297,47462.0,47461.0,0.001]
[1641086524016,1.00510297,47462.0,47461.0,0.181]
[1641086524917,1.1147918,47462.0,47461.0,0.181]
[1641086525218,0.9327918,47462.0,47461.0,0.001]
[1641086525927,1.1147918,47462.0,47461.0,0.181]
[1641086526421,1.00510297,47462.0,47461.0,0.181]
[1641086527323,0.82310297,47462.0,47461.0,0.001]
[1641086527722,0.9327918,47462.0,47461.0,0.001]
[1641086527921,1.1157918,47462.0,47461.0,0.182]
[1641086528122,0.183,47462.0,47461.0,0.182]
[1641086529223,0.29268883,47462.0,47461.0,0.182]
[1641086529422,0.10968883,47462.0,47461.0,0.001]
[1641086529922,0.29268883,47462.0,47461.0,0.182]
[1641086531128,1.11595148,47462.0,47461.0,0.182]
[1641086531324,0.93295148,47462.0,47461.0,0.001]
[1641086531524,0.10968883,47462.0,47461.0,0.001]
[1641086531926,0.29268883,47462.0,47461.0,0.182]
[1641086533329,0.93289859,47462.0,47461.0,0.001]
[1641086534030,1.00520976,47462.0,47461.0,0.181]
[1641086534530,1.46910832,47462.0,47461.0,0.181]
[1641086535428,1.28710832,47462.0,47461.0,0.001]
[1641086536027,1.46910832,47462.0,47461.0,0.181]
[1641086537328,1.28710832,47462.0,47461.0,0.001]
[1641086538030,1.47110832,47462.0,47461.0,0.182]
[1641086539130,0.29368883,47462.0,47461.0,0.182]
[1641086539331,0.10968883,47462.0,47461.0,0.001]
[1641086539533,1.28710832,47462.0,47461.0,0.001]
[1641086540133,1.46910832,47462.0,47461.0,0.181]
[1641086541235,1.28710832,47462.0,47461.0,0.001]
[1641086542035,1.46810832,47462.0,47461.0,0.181]
[1641086543438,1.28710832,47462.0,47461.0,0.001]
[1641086544140,1.28710832,47462.0,47458.0,0.118856]
[1641086544141,1.73176531,47462.0,47458.0,0.118856]
[1641086544341,0.18,47459.0,47455.0,1e-08]
[1641086544540,0.18,47456.0,47455.0,1e-08]
[1641086544744,0.18,47456.0,47449.0,1e-08]
[1641086544944,0.14033567,47450.0,47449.0,1e-08]
[1641086545139,0.21320567,47450.0,47449.0,1e-08]
[1641086545940,0.21320567,47450.0,47446.0,1.31613386]
[1641086546140,0.39920567,47450.0,47446.0,1.31613386]
[1641086546341,0.39920567,47450.0,47441.0,1.959394]
[1641086546342,0.39920567,47450.0,47441.0,3.27552786]
[1641086546542,0.39920567,47450.0,47441.0,1.32592786]
[1641086547143,0.35170144,47444.0,47441.0,0.009794]
[1641086547953,0.35170144,47444.0,47442.0,0.01197601]
[1641086548152,0.54570144,47444.0,47442.0,0.01197601]
[1641086548755,0.194,47444.0,47442.0,0.01197601]
[1641086549456,0.35170144,47446.0,47442.0,0.01197601]
[1641086549958,0.35170144,47446.0,47442.0,0.07219601]
[1641086550157,0.54170144,47446.0,47442.0,0.07219601]
[1641086550456,0.54170144,47446.0,47445.0,0.02107532]
[1641086550657,0.44800144,47446.0,47445.0,0.02107532]
[1641086550856,0.44800144,47446.0,47445.0,0.02207532]
[1641086551056,1.29019963,47455.0,47445.0,1.26641099]
[1641086551258,1.29019963,47455.0,47451.0,0.18]
[1641086551457,1.29019963,47455.0,47454.0,0.001]
[1641086551659,1.29019963,47455.0,47454.0,0.08153]
[1641086551858,0.02107532,47464.0,47454.0,0.08153]
[1641086551859,1.29019963,47460.0,47454.0,0.08153]
[1641086552059,1.29019963,47460.0,47454.0,0.27153]
[1641086552562,1.17410288,47457.0,47454.0,0.27153]
[1641086552759,1.17410288,47457.0,47456.0,0.001]
[1641086553060,1.17410288,47457.0,47456.0,0.14133567]
[1641086553860,1.17410288,47458.0,47456.0,0.14133567]
[1641086554060,1.17410288,47458.0,47457.0,0.001]
[1641086554262,1.17410288,47458.0,47457.0,0.010794]
[1641086554462,1.17410288,47459.0,47457.0,0.009794]
[1641086556068,1.17410288,47459.0,47457.0,0.197794]
[1641086556565,1.17410288,47459.0,47457.0,0.188]
[1641086557364,1.17410288,47459.0,47456.0,0.14033567]
[1641086558064,1.17410288,47459.0,47456.0,0.32933567]
[1641086558265,1.17410288,47460.0,47456.0,0.32933567]
[1641086559465,1.17410288,47460.0,47456.0,0.14033567]
[1641086560065,1.17410288,47460.0,47456.0,0.32733567]
[1641086561468,1.17410288,47460.0,47456.0,0.14033567]
[1641086561668,1.17410288,47459.0,47456.0,0.14033567]
[1641086562068,1.17410288,47459.0,47456.0,0.32633567]
[1641086563369,1.17410288,47459.0,47456.0,0.14033567]
[1641086563569,1.17410288,47459.0,47456.0,0.17173567]
[1641086564073,1.17410288,47459.0,47456.0,0.35973567]
[1641086565172,1.17410288,47460.0,47456.0,0.35973567]
[1641086565383,1.17410288,47460.0,47456.0,0.17173567]
[1641086566173,1.17410288,47460.0,47456.0,0.35673567]
[1641086567474,1.17410288,47460.0,47456.0,0.17173567]
[1641086568076,1.17410288,47460.0,47456.0,0.35673567]
[1641086569175,0.82518087,47458.0,47456.0,0.35673567]
[1641086569578,0.82518087,47458.0,47456.0,0.17173567]
[1641086570077,0.82518087,47458.0,47456.0,0.36273567]
[1641086570591,0.82518087,47458.0,47457.0,0.001]
[1641086570785,0.82518087,47458.0,47456.0,0.36273567]
[1641086571285,0.82518087,47458.0,47457.0,0.001]
[1641086572183,0.82518087,47458.0,47457.0,0.192]
[1641086572482,0.82518087,47458.0,47457.0,0.193]
[1641086572680,0.82518087,47458.0,47457.0,0.192]
[1641086572980,0.82518087,47458.0,47457.0,0.193]
[1641086573384,0.82518087,47458.0,47456.0,0.17173567]
[1641086573781,0.82518087,47458.0,47457.0,0.001]
[1641086574281,0.82518087,47458.0,47456.0,0.36273567]
[1641086574483,0.82518087,47458.0,47457.0,0.001]
[1641086574683,1.29019963,47464.0,47457.0,0.001]
[1641086574984,1.29019963,47460.0,47456.0,1.55978401]
[1641086575381,1.29019963,47460.0,47456.0,1.36878401]
[1641086575582,1.29019963,47460.0,47458.0,0.83830526]
[1641086576085,1.29019963,47460.0,47458.0,1.02430526]
[1641086577482,1.29019963,47460.0,47458.0,0.83830526]
[1641086578083,1.29019963,47460.0,47458.0,1.02330526]
[1641086578586,1.52332027,47465.0,47458.0,1.02330526]
[1641086578587,1.29019963,47462.0,47458.0,0.185]
[1641086580186,1.47519963,47462.0,47458.0,0.367]
[1641086580784,0.11582976,47461.0,47458.0,0.367]
[1641086581384,0.11582976,47460.0,47457.0,0.83830526]
[1641086582186,0.11582976,47460.0,47457.0,1.02230526]
[1641086582386,1.29019963,47462.0,47457.0,1.02230526]
[1641086582387,0.11582976,47459.0,47457.0,0.184]
[1641086583186,0.11582976,47458.0,47457.0,0.184]
[1641086583387,0.11582976,47458.0,47456.0,0.17173567]
[1641086584187,0.11582976,47458.0,47456.0,0.36073567]
[1641086584689,0.11582976,47457.0,47456.0,0.36073567]
[1641086585488,0.11582976,47457.0,47456.0,0.17173567]
[1641086585693,1.29019963,47461.0,47456.0,1.01004093]
[1641086586188,1.47519963,47461.0,47456.0,1.19304093]
[1641086586698,1.47519963,47461.0,47456.0,0.35473567]
[1641086587295,0.11582976,47460.0,47456.0,0.35473567]
[1641086587496,0.11582976,47460.0,47456.0,0.17173567]
[1641086588096,0.11582976,47460.0,47456.0,0.35573567]
[1641086588296,0.11582976,47459.0,47456.0,0.35573567]
[1641086588810,0.11582976,47458.0,47456.0,0.35573567]
[1641086589410,0.11582976,47457.0,47456.0,0.17173567]
[1641086590212,1.29019963,47460.0,47456.0,0.36273567]
[1641086590412,1.29019963,47460.0,47456.0,0.33133567]
[1641086591012,1.47019963,47460.0,47456.0,0.33133567]
[1641086591212,0.18,47457.0,47456.0,0.33133567]
[1641086591412,0.18,47457.0,47455.0,0.83830526]
[1641086591614,1.284,47457.0,47449.0,1.14440298]
[1641086591813,0.18,47451.0,47449.0,1.14440298]
[1641086592011,0.24035,47451.0,47449.0,1.14440298]
[1641086592614,0.24035,47451.0,47445.0,0.14033567]
[1641086592814,0.18,47448.0,47445.0,0.14033567]
[1641086593814,0.11582976,47447.0,47445.0,0.14033567]
[1641086594618,0.185,47448.0,47445.0,0.14033567]
[1641086595218,0.11582976,47446.0,47445.0,0.14033567]
[1641086595819,0.14033567,47453.0,47445.0,0.14033567]
[1641086595820,0.11582976,47447.0,47445.0,0.14033567]
[1641086596219,0.19,47446.0,47445.0,0.32033567]
[1641086596819,0.54414462,47446.0,47445.0,0.32033567]
[1641086597420,0.54414462,47446.0,47445.0,0.32133567]
[1641086597620,0.35414462,47446.0,47445.0,0.32133567]
[1641086597920,0.35414462,47449.0,47445.0,0.34241152]
[1641086598219,0.35414462,47449.0,47445.0,0.34141152]
[1641086598620,0.94438566,47451.0,47445.0,1.65809651]
[1641086598821,0.35414462,47451.0,47450.0,0.18]
[1641086599019,0.35414462,47451.0,47450.0,0.27068]
[1641086599621,0.59024104,47452.0,47450.0,0.27068]
[1641086599821,0.35414462,47453.0,47451.0,0.14033567]
[1641086600224,0.191,47452.0,47451.0,0.14033567]
[1641086601225,0.54514462,47452.0,47451.0,0.14033567]
[1641086601526,0.35414462,47452.0,47451.0,0.14033567]
[1641086602226,0.54514462,47452.0,47451.0,0.14033567]
[1641086603528,0.35414462,47452.0,47451.0,0.14033567]
[1641086604232,0.54414462,47452.0,47451.0,0.14033567]
[1641086605632,0.35414462,47452.0,47451.0,0.14033567]
[1641086606234,0.54214462,47452.0,47451.0,0.14033567]
[1641086607537,0.35414462,47452.0,47451.0,0.14033567]
[1641086608339,0.54314462,47452.0,47451.0,0.14033567]
[1641086608940,0.189,47452.0,47451.0,0.14033567]
[1641086609541,0.59024104,47453.0,47451.0,0.14033567]
[1641086609944,0.82310303,47454.0,47451.0,0.14033567]
[1641086609945,0.35140636,47452.0,47451.0,0.14033567]
[1641086612042,0.59024104,47454.0,47451.0,0.14033567]
[1641086612043,0.35140636,47453.0,47451.0,0.14033567]
[1641086612241,0.35140636,47453.0,47452.0,0.18]
[1641086612645,1.17715695,47458.0,47452.0,0.18]
[1641086612646,0.35140636,47455.0,47452.0,0.18]
[1641086612842,0.35140636,47455.0,47454.0,0.001]
[1641086613142,0.0315,47463.0,47454.0,0.02207185]
[1641086613342,1.9763,47472.0,47462.0,0.18]
[1641086613542,3.45592512,47475.0,47465.0,0.18]
[1641086613942,1.27309051,47467.0,47466.0,0.28167134]
[1641086614142,1.50012512,47475.0,47466.0,2.18567134]
[1641086614344,0.0664282,47476.0,47474.0,0.98]
[1641086614541,3.8269,47491.0,47475.0,0.202058]
[1641086614542,1.52471389,47483.0,47475.0,0.202058]
[1641086614741,1.52471389,47483.0,47482.0,0.18]
[1641086614943,1.52471389,47483.0,47482.0,0.181]
[1641086615642,1.52471389,47483.0,47482.0,0.981]
[1641086615843,1.52471389,47483.0,47482.0,1.08564806]
[1641086616043,3.51171503,47499.0,47482.0,2.61065507]
[1641086616242,1.52931503,47499.0,47491.0,0.18]
[1641086616443,1.52931503,47499.0,47491.0,0.24624]
[1641086616942,1.70931503,47499.0,47491.0,0.06624]
[1641086617143,0.18,47499.0,47491.0,0.06624]
[1641086617347,0.18,47494.0,47491.0,0.06624]
[1641086617543,0.18,47494.0,47482.0,0.61500701]
[1641086617544,0.07659,47494.0,47482.0,0.61500701]
[1641086617749,0.07659,47494.0,47484.0,0.02105859]
[1641086618043,0.07659,47494.0,47491.0,0.14033567]
[1641086618544,0.14033567,47501.0,47491.0,0.14033567]
[1641086619944,1.41327246,47497.0,47491.0,0.14033567]
[1641086620152,1.29549976,47494.0,47491.0,0.14033567]
[1641086620947,0.02105678,47506.0,47488.0,0.02105678]
[1641086620948,1.18012108,47495.0,47488.0,0.02105678]
[1641086621950,0.82723598,47493.0,47489.0,0.15527864]
[1641086622149,0.82723598,47493.0,47491.0,0.14033567]
[1641086622953,0.59097224,47492.0,47491.0,0.14033567]
[1641086623851,1.29549976,47499.0,47491.0,0.14033567]
[1641086624151,1.29549976,47493.0,47491.0,1.13268867]
[1641086624350,1.29549976,47493.0,47491.0,1.18368867]
[1641086624851,1.29549976,47493.0,47491.0,1.02841003]
[1641086625052,0.18,47498.0,47491.0,1.02841003]
[1641086625053,0.18,47498.0,47491.0,0.19133567]
[1641086625651,0.18,47498.0,47491.0,0.14033567]
[1641086626354,0.376,47498.0,47491.0,0.14033567]
[1641086626953,0.196,47498.0,47491.0,0.14033567]
[1641086627553,0.32033567,47501.0,47491.0,0.14033567]
[1641086628061,0.18,47498.0,47491.0,0.14033567]
[1641086628457,0.216,47500.0,47491.0,0.14033567]
[1641086630171,0.02,47500.0,47491.0,0.14033567]
[1641086630371,0.216,47500.0,47491.0,0.16139145]
[1641086630574,0.216,47500.0,47491.0,0.34139145]
[1641086631572,0.02,47500.0,47491.0,0.34139145]
[1641086631972,0.02,47500.0,47491.0,0.16139145]